[Event "Titled Tuesday Blitz January 25 2022"]
[White "Lenderman, Aleksandr"]
[Black "Jary, Sergey"]
[WhiteFideId "2021285"]
[BlackFideId "14110350"]
[WhiteElo "2651"]
[BlackElo "2260"]
[Result "1-0"]
[Round "03"]
[TimeControl "180+1"]
[Date "2022.01.26"]
[WhiteClock "0:00:12"]
[BlackClock "0:00:02"]

1. d4 {[%clk 0:03:00]}  Nf6 {[%clk 0:02:59]} 2. c4 {[%clk 0:02:58]}  g6 {[%clk 0:02:59]} 3. Nc3 {[%clk 0:02:51]}  Bg7 {[%clk 0:03:00]} 4. e4 {[%clk 0:02:51]}  d6 {[%clk 0:03:00]} 5. Nf3 {[%clk 0:02:51]}  O-O {[%clk 0:03:01]} 6. Be2 {[%clk 0:02:52]}  e5 {[%clk 0:03:01]} 7. O-O {[%clk 0:02:53]}  Na6 {[%clk 0:02:59]} 8. Be3 {[%clk 0:02:43]}  Qe7 {[%clk 0:02:58]} 9. dxe5 {[%clk 0:02:36]}  dxe5 {[%clk 0:02:58]} 10. Nd5 {[%clk 0:02:36]}  Nxd5 {[%clk 0:02:54]} 11. cxd5 {[%clk 0:02:36]}  Bd7 {[%clk 0:02:50]} 12. Qb3 {[%clk 0:02:33]}  Nc5 {[%clk 0:02:47]} 13. Qa3 {[%clk 0:02:31]}  b6 {[%clk 0:02:44]} 14. Nd2 {[%clk 0:02:31]}  c6 {[%clk 0:02:27]} 15. Nb3 {[%clk 0:02:23]}  cxd5 {[%clk 0:02:26]} 16. Nxc5 {[%clk 0:02:18]}  bxc5 {[%clk 0:02:24]} 17. Bxc5 {[%clk 0:02:19]}  Qg5 {[%clk 0:02:21]} 18. exd5 {[%clk 0:02:15]}  e4 {[%clk 0:02:13]} 19. Bxf8 {[%clk 0:02:13]}  Bxf8 {[%clk 0:02:07]} 20. d6 {[%clk 0:01:56]}  Re8 {[%clk 0:01:19]} 21. Rad1 {[%clk 0:01:50]}  e3 {[%clk 0:01:18]} 22. f4 {[%clk 0:01:48]}  Qf6 {[%clk 0:01:11]} 23. Qxa7 {[%clk 0:01:47]}  Bc6 {[%clk 0:01:04]} 24. d7 {[%clk 0:01:45]}  Rd8 {[%clk 0:01:00]} 25. Qxe3 {[%clk 0:01:45]}  Bxd7 {[%clk 0:00:55]} 26. Kh1 {[%clk 0:01:31]}  Re8 {[%clk 0:00:54]} 27. Qd4 {[%clk 0:01:17]}  Qxd4 {[%clk 0:00:52]} 28. Rxd4 {[%clk 0:01:18]}  Rxe2 {[%clk 0:00:52]} 29. Rxd7 {[%clk 0:01:17]}  Rxb2 {[%clk 0:00:52]} 30. Ra7 {[%clk 0:01:16]}  Bc5 {[%clk 0:00:45]} 31. Ra8+ {[%clk 0:01:14]}  Kg7 {[%clk 0:00:46]} 32. a4 {[%clk 0:01:05]}  h5 {[%clk 0:00:45]} 33. g3 {[%clk 0:01:02]}  Kf6 {[%clk 0:00:40]} 34. a5 {[%clk 0:01:02]}  Kf5 {[%clk 0:00:39]} 35. Rc8 {[%clk 0:00:57]}  Bb4 {[%clk 0:00:29]} 36. a6 {[%clk 0:00:49]}  Ra2 {[%clk 0:00:29]} 37. Rb1 {[%clk 0:00:43]}  Bd2 {[%clk 0:00:23]} 38. a7 {[%clk 0:00:26]}  Rxa7 {[%clk 0:00:22]} 39. Rc2 {[%clk 0:00:26]}  Be3 {[%clk 0:00:21]} 40. Kg2 {[%clk 0:00:26]}  h4 {[%clk 0:00:20]} 41. Kf3 {[%clk 0:00:23]}  Bd4 {[%clk 0:00:20]} 42. g4+ {[%clk 0:00:21]}  Ke6 {[%clk 0:00:20]} 43. Ke4 {[%clk 0:00:19]}  Bg7 {[%clk 0:00:19]} 44. Rb6+ {[%clk 0:00:17]}  Ke7 {[%clk 0:00:19]} 45. Rbc6 {[%clk 0:00:17]}  Ra4+ {[%clk 0:00:18]} 46. R6c4 {[%clk 0:00:16]}  Ra6 {[%clk 0:00:17]} 47. Rc7+ {[%clk 0:00:16]}  Kf8 {[%clk 0:00:16]} 48. Rc8+ {[%clk 0:00:16]}  Ke7 {[%clk 0:00:17]} 49. R2c7+ {[%clk 0:00:16]}  Kd6 {[%clk 0:00:16]} 50. Rxf7 {[%clk 0:00:16]}  Ra4+ {[%clk 0:00:16]} 51. Kd3 {[%clk 0:00:16]}  Ra3+ {[%clk 0:00:15]} 52. Ke4 {[%clk 0:00:15]}  Ra4+ {[%clk 0:00:14]} 53. Kf3 {[%clk 0:00:15]}  Ra3+ {[%clk 0:00:14]} 54. Ke2 {[%clk 0:00:15]}  Bd4 {[%clk 0:00:13]} 55. Rd8+ {[%clk 0:00:15]}  Ke6 {[%clk 0:00:13]} 56. Rff8 {[%clk 0:00:13]}  Bg1 {[%clk 0:00:09]} 57. f5+ {[%clk 0:00:12]}  gxf5 {[%clk 0:00:09]} 58. gxf5+ {[%clk 0:00:13]}  Ke7 {[%clk 0:00:09]} 59. f6+ {[%clk 0:00:12]}  Ke6 {[%clk 0:00:09]} 60. Rde8+ {[%clk 0:00:12]}  Kd7 {[%clk 0:00:09]} 61. Re7+ {[%clk 0:00:11]}  Kd6 {[%clk 0:00:09]} 62. Rd8+ {[%clk 0:00:11]}  Kc6 {[%clk 0:00:06]} 63. f7 {[%clk 0:00:12]}  Ra2+ {[%clk 0:00:05]} 64. Kf1 {[%clk 0:00:12]}  Rf2+ {[%clk 0:00:03]} 65. Kxg1 {[%clk 0:00:12]}  Rf5 {[%clk 0:00:02]} 66. f8=Q {[%clk 0:00:12]} 1-0


[Site "https://www.chess.com"]

[Event "Titled Tuesday Blitz January 25 2022"]
[White "Liyanage, Ranindu Dilshan"]
[Black "Pultinevicius, Paulius"]
[WhiteFideId "9915834"]
[BlackFideId "12809390"]
[WhiteElo "1858"]
[BlackElo "2413"]
[Result "0-1"]
[Round "03"]
[TimeControl "180+1"]
[Date "2022.01.26"]
[WhiteClock "0:00:22"]
[BlackClock "0:00:41"]

1. e4 {[%clk 0:03:00]}  e5 {[%clk 0:02:56]} 2. Nf3 {[%clk 0:03:00]}  Nf6 {[%clk 0:02:57]} 3. d4 {[%clk 0:03:00]}  Nxe4 {[%clk 0:02:53]} 4. Bd3 {[%clk 0:02:59]}  d5 {[%clk 0:02:53]} 5. Nxe5 {[%clk 0:03:00]}  Nd7 {[%clk 0:02:52]} 6. O-O {[%clk 0:02:55]}  Nxe5 {[%clk 0:02:48]} 7. dxe5 {[%clk 0:02:56]}  Nc5 {[%clk 0:02:41]} 8. c4 {[%clk 0:02:24]}  Nxd3 {[%clk 0:02:36]} 9. Qxd3 {[%clk 0:02:25]}  Be6 {[%clk 0:02:31]} 10. cxd5 {[%clk 0:02:22]}  Qxd5 {[%clk 0:02:32]} 11. Qxd5 {[%clk 0:02:21]}  Bxd5 {[%clk 0:02:32]} 12. Nc3 {[%clk 0:02:21]}  Be6 {[%clk 0:02:31]} 13. Be3 {[%clk 0:02:19]}  a6 {[%clk 0:02:21]} 14. Rac1 {[%clk 0:02:18]}  O-O-O {[%clk 0:02:20]} 15. f4 {[%clk 0:02:11]}  Bf5 {[%clk 0:02:09]} 16. Rfd1 {[%clk 0:02:00]}  Rxd1+ {[%clk 0:02:01]} 17. Rxd1 {[%clk 0:02:01]}  Bb4 {[%clk 0:01:59]} 18. a3 {[%clk 0:01:31]}  Bxc3 {[%clk 0:01:58]} 19. bxc3 {[%clk 0:01:32]}  Rd8 {[%clk 0:01:58]} 20. Rxd8+ {[%clk 0:01:27]}  Kxd8 {[%clk 0:01:59]} 21. Kf2 {[%clk 0:01:25]}  Kd7 {[%clk 0:01:59]} 22. h3 {[%clk 0:01:16]}  Kc6 {[%clk 0:01:58]} 23. g4 {[%clk 0:01:15]}  Bb1 {[%clk 0:01:58]} 24. f5 {[%clk 0:01:07]}  Ba2 {[%clk 0:01:50]} 25. Bd4 {[%clk 0:01:05]}  Kb5 {[%clk 0:01:41]} 26. Ke3 {[%clk 0:01:03]}  c5 {[%clk 0:01:39]} 27. g5 {[%clk 0:00:37]}  cxd4+ {[%clk 0:01:38]} 28. cxd4 {[%clk 0:00:38]}  g6 {[%clk 0:01:37]} 29. e6 {[%clk 0:00:36]}  fxe6 {[%clk 0:01:27]} 30. f6 {[%clk 0:00:36]}  e5 {[%clk 0:01:28]} 31. dxe5 {[%clk 0:00:34]}  Be6 {[%clk 0:00:48]} 32. Kd4 {[%clk 0:00:29]}  b6 {[%clk 0:00:44]} 33. Kc3 {[%clk 0:00:24]}  Ka4 {[%clk 0:00:43]} 34. Kb2 {[%clk 0:00:23]}  a5 {[%clk 0:00:43]} 35. h4 {[%clk 0:00:22]}  b5 {[%clk 0:00:41]} 36. Kc3 {[%clk 0:00:22]}  Kxa3 {[%clk 0:00:40]} 37. Kd4 {[%clk 0:00:22]}  Kb4 {[%clk 0:00:41]} 0-1


[Site "https://www.chess.com"]

[Event "Titled Tuesday Blitz January 25 2022"]
[White "Maksimovic, Bojan"]
[Black "Guseva, Marina"]
[WhiteFideId "14408120"]
[BlackFideId "4149351"]
[WhiteElo "2450"]
[BlackElo "2232"]
[Result "1-0"]
[Round "03"]
[TimeControl "180+1"]
[Date "2022.01.26"]
[WhiteClock "0:01:05"]
[BlackClock "0:00:24"]

1. d4 {[%clk 0:03:00]}  Nf6 {[%clk 0:02:57]} 2. c4 {[%clk 0:02:59]}  e6 {[%clk 0:02:56]} 3. Nf3 {[%clk 0:02:59]}  b6 {[%clk 0:02:54]} 4. Nc3 {[%clk 0:02:58]}  Bb4 {[%clk 0:02:52]} 5. Bd2 {[%clk 0:02:57]}  Bb7 {[%clk 0:02:47]} 6. e3 {[%clk 0:02:57]}  O-O {[%clk 0:02:46]} 7. Qc2 {[%clk 0:02:57]}  d5 {[%clk 0:02:44]} 8. O-O-O {[%clk 0:02:54]}  a5 {[%clk 0:02:37]} 9. cxd5 {[%clk 0:02:51]}  Bxc3 {[%clk 0:02:22]} 10. Bxc3 {[%clk 0:02:49]}  Bxd5 {[%clk 0:02:21]} 11. Nd2 {[%clk 0:02:46]}  a4 {[%clk 0:02:16]} 12. Kb1 {[%clk 0:02:44]}  Nc6 {[%clk 0:02:14]} 13. e4 {[%clk 0:02:39]}  Bb3 {[%clk 0:02:02]} 14. axb3 {[%clk 0:02:35]}  axb3 {[%clk 0:02:02]} 15. Nxb3 {[%clk 0:02:25]}  Qb8 {[%clk 0:01:58]} 16. f3 {[%clk 0:02:25]}  Qa7 {[%clk 0:01:58]} 17. Bb5 {[%clk 0:02:22]}  Ne7 {[%clk 0:01:37]} 18. Kc1 {[%clk 0:02:13]}  c5 {[%clk 0:01:31]} 19. d5 {[%clk 0:02:03]}  exd5 {[%clk 0:01:30]} 20. Bxf6 {[%clk 0:02:02]}  c4 {[%clk 0:01:25]} 21. Bc3 {[%clk 0:01:16]}  cxb3 {[%clk 0:01:24]} 22. Qxb3 {[%clk 0:01:17]}  Rfc8 {[%clk 0:01:15]} 23. exd5 {[%clk 0:01:12]}  Rc5 {[%clk 0:01:05]} 24. Rhe1 {[%clk 0:01:11]}  h6 {[%clk 0:00:31]} 25. d6 {[%clk 0:01:09]}  Nc6 {[%clk 0:00:24]} 26. d7 {[%clk 0:01:05]} 1-0


[Site "https://www.chess.com"]

[Event "Titled Tuesday Blitz January 25 2022"]
[White "Martinez Alcantara, Jose Eduardo"]
[Black "Djordjevic, Vuk"]
[WhiteFideId "3805662"]
[BlackFideId "902098"]
[WhiteElo "2690"]
[BlackElo "2463"]
[Result "1-0"]
[Round "03"]
[TimeControl "180+1"]
[Date "2022.01.26"]
[WhiteClock "0:00:35"]
[BlackClock "0:00:03"]

1. e4 {[%clk 0:03:00]}  d5 {[%clk 0:02:59]} 2. exd5 {[%clk 0:03:00]}  Qxd5 {[%clk 0:03:00]} 3. Nf3 {[%clk 0:03:00]}  Bg4 {[%clk 0:03:00]} 4. Be2 {[%clk 0:03:00]}  Nc6 {[%clk 0:03:00]} 5. h3 {[%clk 0:03:01]}  Bxf3 {[%clk 0:02:59]} 6. Bxf3 {[%clk 0:03:02]}  Qe6+ {[%clk 0:03:00]} 7. Qe2 {[%clk 0:03:02]}  Qxe2+ {[%clk 0:03:00]} 8. Bxe2 {[%clk 0:03:03]}  Nd4 {[%clk 0:03:00]} 9. Bd1 {[%clk 0:03:03]}  g6 {[%clk 0:03:00]} 10. c3 {[%clk 0:03:02]}  Nc6 {[%clk 0:02:58]} 11. d3 {[%clk 0:02:59]}  Bh6 {[%clk 0:02:58]} 12. Bxh6 {[%clk 0:02:49]}  Nxh6 {[%clk 0:02:59]} 13. Nd2 {[%clk 0:02:50]}  Ne5 {[%clk 0:02:52]} 14. Be2 {[%clk 0:02:50]}  c5 {[%clk 0:02:51]} 15. O-O-O {[%clk 0:02:50]}  O-O-O {[%clk 0:02:50]} 16. Nb3 {[%clk 0:02:48]}  b6 {[%clk 0:02:43]} 17. f4 {[%clk 0:02:45]}  Nc6 {[%clk 0:02:39]} 18. g4 {[%clk 0:02:45]}  f6 {[%clk 0:02:31]} 19. Rhe1 {[%clk 0:02:43]}  Rd6 {[%clk 0:02:01]} 20. Bf3 {[%clk 0:02:43]}  Re8 {[%clk 0:02:01]} 21. Nd2 {[%clk 0:02:18]}  Kc7 {[%clk 0:01:49]} 22. Kc2 {[%clk 0:02:14]}  Nf7 {[%clk 0:01:40]} 23. Nc4 {[%clk 0:02:11]}  Rd7 {[%clk 0:01:37]} 24. a3 {[%clk 0:02:09]}  b5 {[%clk 0:01:34]} 25. Nd2 {[%clk 0:02:01]}  Nd6 {[%clk 0:01:19]} 26. b4 {[%clk 0:01:43]}  cxb4 {[%clk 0:01:08]} 27. axb4 {[%clk 0:01:44]}  e5 {[%clk 0:01:08]} 28. Bxc6 {[%clk 0:01:38]}  Kxc6 {[%clk 0:01:08]} 29. fxe5 {[%clk 0:01:39]}  Rxe5 {[%clk 0:00:48]} 30. Nf3 {[%clk 0:01:39]}  Rxe1 {[%clk 0:00:40]} 31. Rxe1 {[%clk 0:01:39]}  Kd5 {[%clk 0:00:32]} 32. h4 {[%clk 0:01:12]}  h6 {[%clk 0:00:18]} 33. g5 {[%clk 0:00:59]}  hxg5 {[%clk 0:00:17]} 34. hxg5 {[%clk 0:01:00]}  fxg5 {[%clk 0:00:18]} 35. Re5+ {[%clk 0:00:57]}  Kc6 {[%clk 0:00:17]} 36. Rxg5 {[%clk 0:00:54]}  Rg7 {[%clk 0:00:16]} 37. Nd4+ {[%clk 0:00:46]}  Kb6 {[%clk 0:00:13]} 38. Kb3 {[%clk 0:00:43]}  a6 {[%clk 0:00:09]} 39. c4 {[%clk 0:00:43]}  bxc4+ {[%clk 0:00:08]} 40. dxc4 {[%clk 0:00:43]}  Ne4 {[%clk 0:00:07]} 41. Re5 {[%clk 0:00:39]}  Ng3 {[%clk 0:00:07]} 42. c5+ {[%clk 0:00:36]}  Kb7 {[%clk 0:00:07]} 43. Re6 {[%clk 0:00:34]}  g5 {[%clk 0:00:04]} 44. Rb6+ {[%clk 0:00:35]}  Kc7 {[%clk 0:00:03]} 45. Ne6+ {[%clk 0:00:35]} 1-0


[Site "https://www.chess.com"]

[Event "Titled Tuesday Blitz January 25 2022"]
[White "Mitusov, Semen"]
[Black "Vokhidov, Shamsiddin"]
[WhiteFideId "14151049"]
[BlackFideId "14204223"]
[WhiteElo "2246"]
[BlackElo "2611"]
[Result "0-1"]
[Round "03"]
[TimeControl "180+1"]
[Date "2022.01.26"]
[WhiteClock "0:00:29"]
[BlackClock "0:01:21"]

1. e4 {[%clk 0:03:00]}  c5 {[%clk 0:03:00]} 2. Nc3 {[%clk 0:03:00]}  Nc6 {[%clk 0:03:00]} 3. g3 {[%clk 0:03:00]}  g6 {[%clk 0:02:59]} 4. Bg2 {[%clk 0:03:01]}  Bg7 {[%clk 0:03:00]} 5. Nge2 {[%clk 0:03:01]}  d6 {[%clk 0:02:58]} 6. O-O {[%clk 0:03:01]}  Nf6 {[%clk 0:02:58]} 7. d3 {[%clk 0:03:00]}  O-O {[%clk 0:02:57]} 8. h3 {[%clk 0:03:00]}  Rb8 {[%clk 0:02:57]} 9. f4 {[%clk 0:02:59]}  Nd7 {[%clk 0:02:58]} 10. g4 {[%clk 0:02:57]}  b5 {[%clk 0:02:58]} 11. Ng3 {[%clk 0:02:57]}  b4 {[%clk 0:02:58]} 12. Nce2 {[%clk 0:02:57]}  Ba6 {[%clk 0:02:56]} 13. g5 {[%clk 0:02:53]}  c4 {[%clk 0:02:55]} 14. h4 {[%clk 0:02:50]}  cxd3 {[%clk 0:02:50]} 15. cxd3 {[%clk 0:02:49]}  Nc5 {[%clk 0:02:41]} 16. d4 {[%clk 0:02:45]}  Nd7 {[%clk 0:02:36]} 17. d5 {[%clk 0:02:41]}  Na5 {[%clk 0:02:33]} 18. h5 {[%clk 0:02:31]}  Nc4 {[%clk 0:02:32]} 19. h6 {[%clk 0:02:23]}  Bh8 {[%clk 0:02:31]} 20. Rb1 {[%clk 0:02:13]}  Qb6+ {[%clk 0:02:30]} 21. Kh2 {[%clk 0:02:11]}  b3 {[%clk 0:02:24]} 22. axb3 {[%clk 0:02:04]}  Qxb3 {[%clk 0:02:25]} 23. Nd4 {[%clk 0:01:56]}  Qxd1 {[%clk 0:02:15]} 24. Rxd1 {[%clk 0:01:56]}  Bxd4 {[%clk 0:02:10]} 25. Rxd4 {[%clk 0:01:53]}  Na3 {[%clk 0:02:10]} 26. Ra4 {[%clk 0:01:37]}  Nxb1 {[%clk 0:02:06]} 27. Rxa6 {[%clk 0:01:37]}  Rfc8 {[%clk 0:01:49]} 28. Rc6 {[%clk 0:01:17]}  Rxc6 {[%clk 0:01:41]} 29. dxc6 {[%clk 0:01:18]}  Nc5 {[%clk 0:01:41]} 30. e5 {[%clk 0:01:12]}  dxe5 {[%clk 0:01:33]} 31. fxe5 {[%clk 0:01:08]}  Nd3 {[%clk 0:01:29]} 32. Be3 {[%clk 0:00:45]}  Rxb2 {[%clk 0:01:25]} 33. e6 {[%clk 0:00:36]}  Ne1 {[%clk 0:01:21]} 34. c7 {[%clk 0:00:29]}  Rxg2+ {[%clk 0:01:20]} 35. Kh3 {[%clk 0:00:29]}  Rc2 {[%clk 0:01:21]} 0-1


[Site "https://www.chess.com"]

[Event "Titled Tuesday Blitz January 25 2022"]
[White "Mortazavi, Ali"]
[Black "Babazada, Khazar"]
[WhiteFideId "401323"]
[BlackFideId "13413554"]
[WhiteElo "2339"]
[BlackElo "2418"]
[Result "0-1"]
[Round "03"]
[TimeControl "180+1"]
[Date "2022.01.26"]
[WhiteClock "0:00:06"]
[BlackClock "0:00:49"]

1. Nf3 {[%clk 0:03:00]}  g6 {[%clk 0:03:00]} 2. e4 {[%clk 0:03:00]}  Bg7 {[%clk 0:03:00]} 3. d4 {[%clk 0:03:01]}  d6 {[%clk 0:03:01]} 4. Nc3 {[%clk 0:03:01]}  a6 {[%clk 0:03:01]} 5. Be3 {[%clk 0:03:00]}  b5 {[%clk 0:03:01]} 6. a4 {[%clk 0:03:00]}  b4 {[%clk 0:03:01]} 7. Ne2 {[%clk 0:03:01]}  Bb7 {[%clk 0:03:01]} 8. Ng3 {[%clk 0:03:02]}  a5 {[%clk 0:03:01]} 9. Bd3 {[%clk 0:03:01]}  Nd7 {[%clk 0:03:00]} 10. Qd2 {[%clk 0:03:01]}  Ngf6 {[%clk 0:03:01]} 11. h3 {[%clk 0:03:01]}  h5 {[%clk 0:03:00]} 12. Bg5 {[%clk 0:03:00]}  e5 {[%clk 0:02:55]} 13. c3 {[%clk 0:02:57]}  exd4 {[%clk 0:02:48]} 14. cxd4 {[%clk 0:02:56]}  O-O {[%clk 0:02:43]} 15. O-O {[%clk 0:02:55]}  Qe8 {[%clk 0:02:36]} 16. Rfe1 {[%clk 0:02:49]}  Nh7 {[%clk 0:02:34]} 17. Bh6 {[%clk 0:02:47]}  c5 {[%clk 0:02:29]} 18. Bb5 {[%clk 0:02:30]}  Qe7 {[%clk 0:02:21]} 19. Bxg7 {[%clk 0:02:26]}  Kxg7 {[%clk 0:02:20]} 20. Bxd7 {[%clk 0:02:22]}  Qxd7 {[%clk 0:02:18]} 21. dxc5 {[%clk 0:02:23]}  Rad8 {[%clk 0:02:16]} 22. Rad1 {[%clk 0:02:16]}  Qxa4 {[%clk 0:02:15]} 23. cxd6 {[%clk 0:02:12]}  Rfe8 {[%clk 0:02:15]} 24. Ng5 {[%clk 0:01:44]}  Qb5 {[%clk 0:01:42]} 25. Nxh7 {[%clk 0:01:07]}  Kxh7 {[%clk 0:01:42]} 26. Qf4 {[%clk 0:01:01]}  Rd7 {[%clk 0:01:41]} 27. e5 {[%clk 0:00:59]}  Re6 {[%clk 0:01:33]} 28. f3 {[%clk 0:00:53]}  a4 {[%clk 0:01:23]} 29. Rd4 {[%clk 0:00:51]}  Qc5 {[%clk 0:01:14]} 30. Kh2 {[%clk 0:00:46]}  a3 {[%clk 0:01:12]} 31. bxa3 {[%clk 0:00:39]}  bxa3 {[%clk 0:01:13]} 32. Rc1 {[%clk 0:00:29]}  Qxe5 {[%clk 0:00:51]} 33. Qxe5 {[%clk 0:00:24]}  Rxe5 {[%clk 0:00:52]} 34. Rc7 {[%clk 0:00:24]}  Rxc7 {[%clk 0:00:52]} 35. dxc7 {[%clk 0:00:24]}  Ra5 {[%clk 0:00:50]} 36. Rb4 {[%clk 0:00:20]}  Bc8 {[%clk 0:00:49]} 37. Rb8 {[%clk 0:00:15]}  a2 {[%clk 0:00:49]} 38. Rxc8 {[%clk 0:00:16]}  a1=Q {[%clk 0:00:50]} 39. Re8 {[%clk 0:00:09]}  Ra8 {[%clk 0:00:49]} 40. c8=Q {[%clk 0:00:08]}  Rxc8 {[%clk 0:00:49]} 41. Rxc8 {[%clk 0:00:09]}  Qe5 {[%clk 0:00:50]} 42. h4 {[%clk 0:00:08]}  Qf6 {[%clk 0:00:48]} 43. Rc5 {[%clk 0:00:07]}  Qxh4+ {[%clk 0:00:48]} 44. Kg1 {[%clk 0:00:06]}  Qd4+ {[%clk 0:00:49]} 0-1


[Site "https://www.chess.com"]

[Event "Titled Tuesday Blitz January 25 2022"]
[White "Nasuta, Grzegorz"]
[Black "Sviridov, Valery"]
[WhiteFideId "1141686"]
[BlackFideId "4120680"]
[WhiteElo "2396"]
[BlackElo "2454"]
[Result "0-1"]
[Round "03"]
[TimeControl "180+1"]
[Date "2022.01.26"]
[WhiteClock "0:00:02"]
[BlackClock "0:00:59"]

1. e4 {[%clk 0:03:00]}  e5 {[%clk 0:02:59]} 2. Nf3 {[%clk 0:03:01]}  Nc6 {[%clk 0:02:59]} 3. Bc4 {[%clk 0:03:01]}  Nf6 {[%clk 0:03:00]} 4. d3 {[%clk 0:03:01]}  Bc5 {[%clk 0:02:57]} 5. O-O {[%clk 0:03:01]}  d6 {[%clk 0:02:57]} 6. c3 {[%clk 0:03:00]}  a6 {[%clk 0:02:57]} 7. Bb3 {[%clk 0:03:00]}  h6 {[%clk 0:02:57]} 8. Re1 {[%clk 0:03:00]}  O-O {[%clk 0:02:57]} 9. h3 {[%clk 0:03:00]}  Be6 {[%clk 0:02:57]} 10. Nbd2 {[%clk 0:02:56]}  Ba7 {[%clk 0:02:57]} 11. Nf1 {[%clk 0:02:53]}  Qd7 {[%clk 0:02:56]} 12. Bc2 {[%clk 0:02:45]}  Rad8 {[%clk 0:02:43]} 13. Ng3 {[%clk 0:01:24]}  d5 {[%clk 0:02:22]} 14. exd5 {[%clk 0:01:23]}  Qxd5 {[%clk 0:02:22]} 15. Be3 {[%clk 0:01:15]}  Bxe3 {[%clk 0:02:19]} 16. Rxe3 {[%clk 0:01:16]}  Qd6 {[%clk 0:02:19]} 17. Ne4 {[%clk 0:01:00]}  Nxe4 {[%clk 0:02:19]} 18. Rxe4 {[%clk 0:01:01]}  Bd5 {[%clk 0:02:16]} 19. Re3 {[%clk 0:01:01]}  Kh8 {[%clk 0:02:13]} 20. Qe2 {[%clk 0:01:00]}  f6 {[%clk 0:02:13]} 21. Nh4 {[%clk 0:00:55]}  f5 {[%clk 0:02:09]} 22. Qh5 {[%clk 0:00:33]}  f4 {[%clk 0:02:09]} 23. Ree1 {[%clk 0:00:32]}  Kg8 {[%clk 0:02:04]} 24. Rad1 {[%clk 0:00:03]}  Qf6 {[%clk 0:01:54]} 25. Qg4 {[%clk 0:00:03]}  Rd6 {[%clk 0:01:49]} 26. d4 {[%clk 0:00:03]}  Be6 {[%clk 0:01:41]} 27. Qh5 {[%clk 0:00:03]}  Bf7 {[%clk 0:01:14]} 28. Qg4 {[%clk 0:00:03]}  exd4 {[%clk 0:01:07]} 29. cxd4 {[%clk 0:00:01]}  Nxd4 {[%clk 0:01:04]} 30. Bb1 {[%clk 0:00:01]}  c5 {[%clk 0:00:59]} 31. Qh5 {[%clk 0:00:02]}  Bxh5 {[%clk 0:00:59]} 0-1


[Site "https://www.chess.com"]

[Event "Titled Tuesday Blitz January 25 2022"]
[White "Navalgund, Niranjan"]
[Black "Kosakowski, Jakub"]
[WhiteFideId "5030854"]
[BlackFideId "1185080"]
[WhiteElo "2290"]
[BlackElo "2476"]
[Result "0-1"]
[Round "03"]
[TimeControl "180+1"]
[Date "2022.01.26"]
[WhiteClock "0:00:08"]
[BlackClock "0:00:39"]

1. e4 {[%clk 0:02:48]}  c6 {[%clk 0:02:57]} 2. Nc3 {[%clk 0:02:47]}  d5 {[%clk 0:02:58]} 3. Nf3 {[%clk 0:02:32]}  dxe4 {[%clk 0:02:57]} 4. Nxe4 {[%clk 0:02:32]}  Nf6 {[%clk 0:02:57]} 5. Qe2 {[%clk 0:02:31]}  Nxe4 {[%clk 0:02:57]} 6. Qxe4 {[%clk 0:02:31]}  Be6 {[%clk 0:02:57]} 7. Bc4 {[%clk 0:02:30]}  Bd5 {[%clk 0:02:56]} 8. Qe2 {[%clk 0:02:29]}  e6 {[%clk 0:02:47]} 9. d3 {[%clk 0:00:57]}  Be7 {[%clk 0:02:29]} 10. O-O {[%clk 0:00:54]}  O-O {[%clk 0:02:28]} 11. Bf4 {[%clk 0:00:53]}  Nd7 {[%clk 0:02:27]} 12. Bg3 {[%clk 0:00:48]}  Bf6 {[%clk 0:02:15]} 13. Ne5 {[%clk 0:00:42]}  Bxe5 {[%clk 0:01:36]} 14. Bxe5 {[%clk 0:00:42]}  Bxc4 {[%clk 0:01:36]} 15. dxc4 {[%clk 0:00:41]}  Nxe5 {[%clk 0:01:36]} 16. Qxe5 {[%clk 0:00:41]}  Qd2 {[%clk 0:01:36]} 17. Qe4 {[%clk 0:00:38]}  Rad8 {[%clk 0:01:35]} 18. g3 {[%clk 0:00:37]}  Rd4 {[%clk 0:01:34]} 19. Qe1 {[%clk 0:00:31]}  Qxc2 {[%clk 0:01:32]} 20. b3 {[%clk 0:00:31]}  Rfd8 {[%clk 0:01:31]} 21. Qe3 {[%clk 0:00:31]}  h6 {[%clk 0:01:29]} 22. Kg2 {[%clk 0:00:31]}  b6 {[%clk 0:01:26]} 23. h3 {[%clk 0:00:30]}  c5 {[%clk 0:01:26]} 24. h4 {[%clk 0:00:26]}  Rd2 {[%clk 0:01:19]} 25. Rfe1 {[%clk 0:00:25]}  Qf5 {[%clk 0:01:12]} 26. Qf3 {[%clk 0:00:23]}  Qxf3+ {[%clk 0:01:02]} 27. Kxf3 {[%clk 0:00:23]}  Rc2 {[%clk 0:01:03]} 28. Re2 {[%clk 0:00:21]}  Rd3+ {[%clk 0:01:02]} 29. Re3 {[%clk 0:00:18]}  Rdd2 {[%clk 0:01:02]} 30. Rf1 {[%clk 0:00:17]}  Rxa2 {[%clk 0:01:02]} 31. Kg2 {[%clk 0:00:17]}  Kf8 {[%clk 0:01:01]} 32. Rf3 {[%clk 0:00:16]}  Ke7 {[%clk 0:01:01]} 33. Re1 {[%clk 0:00:16]}  a6 {[%clk 0:00:49]} 34. Re4 {[%clk 0:00:16]}  Rab2 {[%clk 0:00:43]} 35. g4 {[%clk 0:00:16]}  Rd4 {[%clk 0:00:42]} 36. Rxd4 {[%clk 0:00:14]}  cxd4 {[%clk 0:00:42]} 37. Rd3 {[%clk 0:00:15]}  e5 {[%clk 0:00:43]} 38. Kf3 {[%clk 0:00:15]}  Ke6 {[%clk 0:00:42]} 39. Kg3 {[%clk 0:00:08]}  Rc2 {[%clk 0:00:39]} 40. f3 {[%clk 0:00:07]}  Rc3 {[%clk 0:00:39]} 41. Rd2 {[%clk 0:00:08]}  Rxb3 {[%clk 0:00:39]} 0-1


[Site "https://www.chess.com"]